Cogmind - Beta 16.1 @@@ ROGUE MODE // 2026.04.18 @ 23:44:52 Player: M4-TR4 Result: Destroyed by YS-M3S(R) with Subdweller Machine Gun Performance ------------- Evolutions (0) 0 Regions Visited (2) 400 Robots Destroyed (32) 160 Value Destroyed (530) 530 Prototype IDs (2) 40 Alien Tech Used (0) 0 Bonus (0) 0 TOTAL SCORE: 1130 Bonus ------- None Cogmind --------- Core Integrity 0/250 Matter 173/300 Energy 250/250 System Corruption 3% Temperature Cool (0) Movement Treading (320) Ox2 Location -10/Subcaves Parts ------- > --- POWER (1) -------- Ion Engine > --- PROPULSION (2) --- Light Treads Aluminum Leg > --- UTILITY (2) ------ Small Storage Unit High-capacity Storage Unit > --- WEAPON (2) ------- Light Assault Rifle Light Assault Rifle > --- INVENTORY (20) --- Ion Engine Ion Engine Light Treads Light Treads Light Treads Light Treads Light Treads Aluminum Leg Compact Wheel Compact Wheel Heat Sink Large Storage Unit Light Assault Rifle Mining Laser Hammer Peak State ------------ > --- POWER ------------ Ion Engine > --- PROPULSION ------- Light Treads Compact Wheel > --- UTILITY ---------- Large Storage Unit High-capacity Storage Unit > --- WEAPON ----------- Assault Rifle Light Assault Rifle > --- INVENTORY -------- Ion Engine Ion Engine Light Treads Light Treads Light Treads Light Treads Light Treads Light Treads Aluminum Leg Aluminum Leg Compact Wheel Heat Sink Small Storage Unit Seismic Detector Assault Rifle Light Assault Rifle Light Assault Rifle Light Assault Rifle Light Assault Rifle Mining Laser [Rating: 9] Favorites ----------- Power Ion Engine Engine Ion Engine Propulsion Light Treads Treads Light Treads Leg Aluminum Leg Wheel Compact Wheel Utility High-capacity Storage Unit Device Seismic Detector Storage High-capacity Storage Unit Weapon Assault Rifle Energy Gun EM Pulse Gun Ballistic Gun Assault Rifle Impact Weapon Hammer Build | -11 -10 -10 ------- Run | Yrd Mat Sub Slots Evolved . | . . . Power . | . . . Propulsion . | . . . Utility . | . . . Weapon . | . . . Parts Attached 17 | 2 6 9 Power 1 | . 1 . Engine 1 | . 1 . Core . | . . . Reactor . | . . . Propulsion 6 | 2 . 4 Treads 2 | 1 . 1 Leg 2 | . . 2 Wheel 2 | 1 . 1 Hover . | . . . Flight . | . . . Utility 4 | . 2 2 Device 1 | . . 1 Storage 3 | . 2 1 Processor . | . . . Hackware . | . . . Protection . | . . . Artifact . | . . . Weapon 6 | . 3 3 Energy Gun . | . . . Energy Cannon . | . . . Ballistic Gun 5 | . 3 2 Ballistic Cannon . | . . . Launcher . | . . . Special Weapon . | . . . Impact Weapon 1 | . . 1 Slashing Weapon . | . . . Piercing Weapon . | . . . Special Melee Weapon . | . . . Unidentified Prototypes . | . . . Parts Lost 6 | . 1 5 Power . | . . . Propulsion 1 | . . 1 Utility 1 | . . 1 Weapon 4 | . 1 3 Highest Loss Streak 3 | . 1 3 To Critical Strikes 1 | . . 1 Average Backups 15 | 6 15 17 Power 1 | 1 1 2 Propulsion 7 | 4 6 8 Utility 2 | . 2 2 Weapon 4 | 1 4 4 Tool/Special . | . . . Unused Backups 17 | 4 3 10 Power 3 | 1 . 2 Propulsion 5 | . . 5 Utility 2 | 1 . 1 Weapon 7 | 2 3 2 Tool/Special . | . . . Average Slot Usage (%) 98 | . 98 99 Engine 14 | . 14 14 Treads 14 | . 14 14 Wheel 13 | . 14 13 Device 1 | . . 2 Storage 25 | . 26 24 Energy Gun 4 | . 6 . Ballistic Gun 22 | . 21 24 Impact Weapon 1 | . . 3 Peak Build Rating 9 | 6 9 9 Average Rating 7 | 6 8 7 On Entrance 7 | 6 6 9 Avg Prop Armor Cover (%) 11 | 13 11 12 Naked Turns . | . . . Heaviest Build 69 | 13 69 69 Greatest Support 20 | 20 20 16 Greatest Overweight (x) 4 | . 4 4 Average Overweight (x) 2 | . 3 3 Largest Inventory Capacity 20 | 8 20 20 Average Capacity 18 | 8 18 20 Most Carried 20 | 8 20 20 Average Carried 15 | 6 15 17 Final Capacity 20 | 8 20 20 Final Carried 20 | 8 20 15 Class Distribution -------------------- 100% | Mutant Dominant Class ---------------- Mutant | -10/Materials Mutant | -10/Subcaves Resources | -11 -10 -10 ----------- Run | Yrd Mat Sub Matter Collected 516 | 233 201 82 Remotely . | . . . Salvage Created 813 | 132 543 138 Parts 66 | 10 46 10 Haulers Intercepted 2 | . 2 . Recyclers Shooed . | . . . Parts Field Recycled . | . . . Retrieved Matter . | . . . Parts Self-Destructed 8 | . . 8 Prevented . | . . . Parts Restored . | . . . Kills | -11 -10 -10 ------- Run | Yrd Mat Sub Combat Hostiles Destroyed 22 | . 17 5 Guns 20 | . 15 5 AOE 2 | . 2 . Classes Destroyed 8 | 2 5 1 Worker 3 | . 3 . Tunneler 3 | 2 1 . Hauler 2 | . 2 . Recycler 1 | 1 . . Watcher 1 | . 1 . Swarmer 14 | . 12 2 Grunt 5 | . 5 . Subdweller 3 | . . 3 Best Kill Streak 4 | 2 4 2 Combat Bots Only 3 | . 3 2 Max Kills in Single Turn 2 | 1 2 1 Gunslinging 1 | . 1 . Exploded 1 | . 1 . Melee . | . . . Uniques/NPCs Destroyed . | . . . Combat | -11 -10 -10 -------- Run | Yrd Mat Sub Hostile Shots Fired 108 | . 67 41 Missed 22 | . 15 7 Hits 86 | . 52 34 Projectile 86 | . 52 34 Critical Strikes 2 | . . 2 Damage Taken 1151 | . 623 528 Core 250 | . 117 133 Absorbed by Shields . | . . . Core Remaining (%) 100 | 100 . . Volleys Fired 83 | 13 50 20 Largest 2 | 2 2 2 Hottest 60 | 60 60 40 Shots Fired 157 | 26 98 33 Gun 157 | 26 98 33 Cannon . | . . . Launcher . | . . . Special . | . . . Kinetic 123 | 13 77 33 Thermal . | . . . Explosive . | . . . Electromagnetic 34 | 13 21 . Robot Hit Streak 23 | 7 8 23 Robot Miss Streak 9 | 9 3 4 Penetration Max . | . . . Secondary Targets 3 | . 3 . Max Gunslinging Chain 1 | . 1 . Shots Hit Robots 90 | 11 54 25 Core Hits 45 | 4 30 11 Critical Kills 1 | . 1 . Critical Parts Destroyed . | . . . Critical Strikes 1 | . 1 . Destroy 1 | . 1 . Melee Attacks 6 | . . 6 Impact 6 | . . 6 Slashing . | . . . Piercing . | . . . Sneak Attacks . | . . . Combat Hostiles . | . . . Follow-up Attacks . | . . . Damage Inflicted 1394 | 136 995 263 Guns 1076 | 136 677 263 Cannons . | . . . Explosions 239 | . 239 . Melee . | . . . Ramming 79 | . 79 . Kinetic 830 | 45 522 263 Thermal 69 | . 69 . Explosive 170 | . 170 . Electromagnetic 246 | 91 155 . Impact . | . . . Slashing . | . . . Piercing . | . . . Highest Corruption 3 | . 3 3 Average Corruption 2 | . 2 3 Corruption Purged . | . . . Corruption Blocked . | . . . Effects 12 | . 3 9 Message Errors 5 | . 1 4 Matter Fused 1 | . . 1 Heat Flow Errors 1 | . . 1 Energy Discharges 2 | . . 2 Data Loss (minor) 2 | . 1 1 Weapon Failures 1 | . 1 . Overload Shots . | . . . Overflow Damage . | . . . Projectiles . | . . . Explosions . | . . . Melee . | . . . Knockbacks . | . . . Impact . | . . . Kinetic . | . . . Secondary . | . . . Self-Inflicted Damage 145 | . 145 . Shots 2 | . 2 . Rammed 14 | 2 12 . Targets Rammed 14 | 2 12 . Kicked . | . . . Crushed . | . . . Highest Temperature 227 | 40 18 227 Average Temperature 32 | 18 11 127 Received Heat Transfer 78 | . 48 30 Siege Activations . | . . . Martial Activations . | . . . Shielding Activations . | . . . Robots Disrupted . | . . . Combat Hostiles . | . . . Robots Corrupted . | . . . Combat Hostiles . | . . . Parts Fried . | . . . Impact Corruptions . | . . . Robots Melted . | . . . Combat Hostiles . | . . . Parts Melted . | . . . Heat Transferred 100 | . 100 . Parts Sabotaged . | . . . Parts Stolen . | . . . Parts Stripped . | . . . Power Chain Reactions 1 | . 1 . Alert | -11 -10 -10 ------- Run | Yrd Mat Sub Maximum Alert Level . | . . . Low Security (%) 100 | 100 100 . Level 1 . | . . . Level 2 . | . . . Level 3 . | . . . Level 4 . | . . . Level 5 . | . . . High Security . | . . . Max Security . | . . . Peak Influence 166 | 5 166 . Initial . | . . . Average 68 | . 75 . Influence Increases 658 | 15 593 50 Destroy 0b10 Robot/C 380 | . 340 40 Destroy 0b10 Robot/NC 50 | 15 35 . Destroy Leader 66 | . 56 10 Successful Hack 32 | . 32 . Disable Machine 75 | . 75 . Destroy Structure 25 | . 25 . Lose Combat Pursuer 30 | . 30 . Influence Decreases 658 | 15 433 210 Entered New Map 77 | . . 77 Time Decay 541 | 15 423 103 Lost Part 40 | . 10 30 Squads Dispatched 2 | . 2 . Investigation . | . . . Extermination . | . . . Reinforcement 2 | . 2 . Assault . | . . . Garrison . | . . . Intercept . | . . . Searches Triggered . | . . . Construction Impeded . | . . . Haulers Reinforced . | . . . Active Scanning Responses . | . . . Cargo Convoy Interrupts . | . . . Stealth | -11 -10 -10 --------- Run | Yrd Mat Sub Distress Signals 3 | . 3 . Communications Jammed . | . . . Distress Signals . | . . . Times Spotted 35 | . 28 7 Peak Tracking Total 4 | . 4 3 Tactical Retreats 1 | . 1 . Traps | -11 -10 -10 ------- Run | Yrd Mat Sub Traps Triggered 2 | . 2 . Indirectly . | . . . Trap Hack Attempts . | . . . Triggered . | . . . Disarmed . | . . . Reprogrammed . | . . . Reused . | . . . Traps Extracted . | . . . Installed . | . . . Triggered . | . . . Machines | -11 -10 -10 ---------- Run | Yrd Mat Sub Machines Disabled 5 | . 5 . Max in Single Turn 4 | . 4 . Machines Repaired . | . . . Machines Dismantled . | . . . Machines Sabotaged . | . . . Overloaded Fab Kills . | . . . Hacking | -11 -10 -10 --------- Run | Yrd Mat Sub Machines Accessed 3 | . 3 . Terminals 3 | . 3 . Fabricators . | . . . Repair Stations . | . . . Recycling Units . | . . . Scanalyzers . | . . . Garrison Access . | . . . Total Hacks 12 | . 12 . Successful 7 | . 7 . Failed 5 | . 5 . Catastrophic . | . . . Database Lockouts . | . . . Manual 12 | . 12 . Terminals 12 | . 12 . Fabricators . | . . . Repair Stations . | . . . Recycling Units . | . . . Scanalyzers . | . . . Garrison Access . | . . . Terminal Hacks 7 | . 7 . Robot Analysis 3 | . 3 . Prototype ID Bank 1 | . 1 . Branch Access Points 1 | . 1 . Hauler Manifests 1 | . 1 . Zone Layout 1 | . 1 . Fabricator Hacks . | . . . Repair Station Hacks . | . . . Recycling Unit Hacks . | . . . Scanalyzer . | . . . Garrison Access Hacks . | . . . Unauthorized Hacks . | . . . Terminals . | . . . Fabricators . | . . . Repair Stations . | . . . Recycling Units . | . . . Scanalyzers . | . . . Garrison Access . | . . . Data Cores Recovered . | . . . Used . | . . . Hacking Detections 3 | . 3 . Full Trace Events . | . . . Feedback Events . | . . . Feedback Blocked . | . . . Robot Schematics Acquired . | . . . Robots Built . | . . . Authchips . | . . . Time . | . . . Total Robot Build Rating . | . . . Part Schematics Acquired . | . . . Parts Built . | . . . Authchips . | . . . Time . | . . . Total Part Build Rating . | . . . Part Studies Acquired . | . . . Parts Repaired . | . . . Time . | . . . Parts Recycled . | . . . Recycled Matter . | . . . Retrieved Matter . | . . . Retrieved Components . | . . . Parts Scanalyzed . | . . . Part Schematics Acquired . | . . . Parts Damaged . | . . . Bothacking | -11 -10 -10 ------------ Run | Yrd Mat Sub Used RIF Installer . | . . . Robots Hacked . | . . . Non-combat . | . . . Combat . | . . . Robot Hacks Applied . | . . . Relay Couplers Released . | . . . Fabnet Peak Effective % . | . . . Robots Rewired . | . . . Allies Hacked . | . . . Hacks Repelled . | . . . Allies | -11 -10 -10 -------- Run | Yrd Mat Sub Total Allies . | . . . Largest Group . | . . . Highest-Rated Group . | . . . Highest-Rated Ally . | . . . Total Orders . | . . . Ally Attacks . | . . . Total Damage . | . . . Kills . | . . . Allies Corrupted . | . . . Allies Melted . | . . . Intel | -11 -10 -10 ------- Run | Yrd Mat Sub Active Infowar (turns) 127 | . . 127 Seismic 127 | . . 127 Robot Analysis Total 3 | . 3 . Derelict Logs Recovered 1 | . . 1 Drone Launches . | . . . Drone Recoveries . | . . . Exploration | -11 -10 -10 ------------- Run | Yrd Mat Sub Turns Passed 1821 | 109 1106 606 Spaces Moved 981 | 53 574 354 Core . | . . . Treads 19 | . 19 . Legs 11 | 11 . . Wheels 951 | 42 555 354 Hover . | . . . Flight . | . . . Fastest Speed 100 | 100 100 145 Average Speed 148 | 104 154 146 Slowest Speed 400 | 120 400 160 Overloaded Moves . | . . . Propulsion Burnouts . | . . . Robots Hopped . | . . . Potential Cave-ins . | . . . Cave-ins Triggered . | . . . Exploration Rate (%) 40 | 4 92 25 Regions Visited 2 Branch Regions 1 Pre-discovered Areas 2 | . . 2 Known Exits Taken . | . . . Unknown Exits Taken 2 | 1 1 . Scrap Searched . | . . . Spaces Dug . | . . . Terrain Destroyed 23 | . 23 . Melee . | . . . Projectile . | . . . AOE 23 | . 23 . Terrain Rammed . | . . . Walls Destroyed . | . . . Machines Disabled . | . . . Actions | -11 -10 -10 --------- Run | Yrd Mat Sub Total 1164 | 82 684 398 Wait 42 | 11 28 3 Move 980 | 53 573 354 Hop . | . . . Pick Up 15 | 2 12 1 Fast Attach 1 | . 1 . Attach 6 | . 1 5 Detach . | . . . Swap 14 | 2 4 8 Drop 4 | . 3 1 Fire 83 | 13 50 20 Melee 6 | . . 6 Ram 10 | 1 9 . Kick . | . . . Crush 3 | . 3 . Escape Stasis . | . . . Rewire . | . . . Trap . | . . . Miscellaneous . | . . . Route ------- -11/Scrapyard -10/Materials (discovered 5 exits: [*Mat x3] / *Min / [*Sub]) -10/Subcaves History --------- Turn | Location | Event 1 | -11/Scrapyard | Discovered new exit (range 3) 110 | -11/Scrapyard | Entered Materials 118 | -10/Materials | Identified exit to Mines 186 | -10/Materials | Discovered new exit (range 16) 319 | -10/Materials | Build established: Mutant 420 | -10/Materials | Discovered new exit (range 7) 855 | -10/Materials | Discovered new exit (range 4) 1195 | -10/Materials | Discovered new exit (range 15) 1216 | -10/Materials | Entered Subcaves 1227 | -10/Subcaves | Core integrity fell below 50% 1409 | -10/Subcaves | Ambushed by Subdwellers from Twisted Machinery 1471 | -10/Subcaves | Lost 3 parts (1n1u1w) 1486 | -10/Subcaves | Learned location of Zion (-7) 1494 | -10/Subcaves | Met a Zionite searching for "candidates" 1813 | -10/Subcaves | Core integrity fell below 20% 1822 | -10/Subcaves | Destroyed by YS-M3S(R) with Subdweller Machine Gun Last Messages --------------- 01453_ YKZH88 OEY=N>FH2K%PN4O9 01457_ Subatomizers dissect the Sub. Optics. 01462_ ET-FXM(z): "She is not going to be happy we haven't found any suitable candidates yet." 01485_ System corrupted: Matter fused (-6). 01486_ Acquired derelict log, extracted data. World map updated: -7/Zion. 01494_ ET-FXM(z): "Hey you! It's really dangerous down here, I feel that you could die at any moment. For your health and safety might I suggest a trip to Zion?" World map confirmed: -7/Zion. 01569_ JWWBKZ LR 6O=D5N8F 01783_ :ZD,YNHJPDA>UNWN<9Q8SSPWQB>VQUBTBWNM% 01814_ Critical hit (Destroy). 01814_ Assault Rifle destroyed. 01819_ MA-48K(R) destroyed. Map ----- +----------------------------------------------------+ | ????????????????????????????????????##??# # | | ???????????????????????????????????## ### # | | ??????????????????????????????????## ## # | | ??????????????????????????????????# ## #### | | ??????????????????????????????????# ##??? | | ??????????????????????????????????# #???? | | ??????????????????????????????????## #???? | | ???????????????????????????????????## ##??? | | ????????????????????????????????????# #### | | ????????????????????????????????????# # | | ???????????????????????????????????## # | | ???????????????????????????????????# # | | ???????????????????????????????????# ## | | ???????????????????????????????????# ####? | | ???????????????????????????????????# "" """ ##???? | | ???????????????????????????????????# "" " ##???? | | ???????????????????????????????????# "" " ##??? | | ???????????????????????????????????# "" " ##?? | | ??????????????????????????????????##"" """""" ##? | | ??????????????????????????###?????#"" """"" #? | | ??????????????? ????????## #####?#"" """"" #? | | ??????????????? ??????## " ### u" """"" #? | | ??????????????# "????## "# """## # | | ???????????????# "" ??#" "" ##?# # | | ????????????????#" ?## # # " "##??#### | | ?????????????????# ##@ ##### "" """#####?? | | ?????????????????# =%* #???##"" """" ### | | ?????????????????# R #????####" # | | ????????????????# ####### ####?###" ## | | ???????????????# ???????# ## ## ## | | ???????????????# ???????? ## # | | ?????????????? ????????? | | ????????????# ????????? # | | ?????????????###???????????##### ### # | | ???????????????????????????????#####?# ##### | | ?????????????????????????????#???????# ##??## | | ????????????????????????????## ??????#### #### | | ????????????????????????????# ???????## ## | | ????????????????????????????# ????### # | | ?????????????????????????????# ???## # | | ??????????????????????????????# ??# ### ## | | ??????????????????????????????# ### #?###? | | ??????????????????????????????# #????? | | ??????????????????????????????# ##???? | | ??????????????????????????????## #???? | | ???????????????????????????????# # ### ##???? | | ??????????????????????????????# ?## ##?###????? | | ??????????????????????????????? ???# ##????????? | | ???????????????????????????????????## ##???????? | | ????????????????????????????????????## #??????## | +----------------------------------------------------+ Best States ------------- Heat Dissipation 25 Energy Generation 10 Energy Capacity 250 Matter Stores 300 Matter Capacity 300 Sight Range 16 Terrain Scan Density 10 Evasion (%) 50 Recoil Reduction 1 Item Schematics ----------------- None Robot Schematics ------------------ None Fabricated ------------ Nothing Repaired ---------- Nothing Studied --------- None Alien Tech Used ----------------- None Achievements -------------- None Challenges ------------ None Game ------ Seed NeutrinoMobileBlaster Manual? 0 Play Time 00:20:35 Cumulative 45.5 hours Start 2026.04.18 @ 23:23:39 End 2026.04.18 @ 23:44:52 Sessions 1 Manual Loads 0 Difficulty Rogue Special Mode None Game No. 25 Rogue 16 Adventurer 0 Explorer 9 Win Type - Total 2 Types 2/0/0/0/0/0/0/0/0/0 Lore% 27 Gallery% 33 Achievement% 39 Wizard Run 0 Options --------- Layout 0 ASCII 0 Keyboard 0 Movement Mouse Keybinds 0 Fullscreen 1 Font 18/SmallcapsGlow Map View 76x50 Zoom Use 0% Tactical HUD 1 Map Filters NONE Filters NONE Steam 1 RUN: f69c5121-c46d-4a72-9bed-baaa2b440423